[Event "*** Titled Tuesday Blitz"]
[Site "Chess.com"]
[Date "2019.10.01"]
[Round "9"]
[White "santosalberto1987"]
[Black "FearNoEvil12"]
[Result "1/2-1/2"]
[WhiteElo "2366"]
[BlackElo "2058"]
[TimeControl "180+2"]
[EndTime "15:14:11 PDT"]
[Termination "Game drawn by stalemate"]

1. e4 {[%clk 0:02:58.5]} 1... a6 {[%clk 0:01:37.4]} 2. d4 {[%clk 0:02:54.6]}
2... b5 {[%clk 0:01:38.4]} 3. Bd3 {[%clk 0:02:54.9]} 3... Bb7 {[%clk 0:01:39.7]}
4. Nf3 {[%clk 0:02:56]} 4... e6 {[%clk 0:01:41.2]} 5. O-O {[%clk 0:02:56.8]}
5... Nf6 {[%clk 0:01:42.7]} 6. Qe2 {[%clk 0:02:57.6]} 6... d6 {[%clk 0:01:44.1]}
7. Bg5 {[%clk 0:02:57.2]} 7... h6 {[%clk 0:01:42.9]} 8. Bh4 {[%clk 0:02:57.5]}
8... g5 {[%clk 0:01:43.8]} 9. Bg3 {[%clk 0:02:57.3]} 9... Nbd7 {[%clk
0:01:45.3]} 10. c3 {[%clk 0:02:56.8]} 10... Rg8 {[%clk 0:01:45.5]} 11. Nbd2
{[%clk 0:02:56.8]} 11... h5 {[%clk 0:01:46.4]} 12. h4 {[%clk 0:02:57]} 12...
gxh4 {[%clk 0:01:47.4]} 13. Nxh4 {[%clk 0:02:57.6]} 13... Be7 {[%clk 0:01:48.9]}
14. a4 {[%clk 0:02:42.4]} 14... Ng4 {[%clk 0:01:46]} 15. Nhf3 {[%clk 0:02:36.8]}
15... bxa4 {[%clk 0:01:45.7]} 16. Rxa4 {[%clk 0:02:35.9]} 16... h4 {[%clk
0:01:47]} 17. Bf4 {[%clk 0:02:37]} 17... e5 {[%clk 0:01:40.6]} 18. Be3 {[%clk
0:02:30.6]} 18... Nxe3 {[%clk 0:01:22.5]} 19. fxe3 {[%clk 0:02:28.2]} 19... Bf8
{[%clk 0:01:18.3]} 20. Bc4 {[%clk 0:02:22.3]} 20... Bh6 {[%clk 0:01:16.9]} 21.
Bxf7+ {[%clk 0:01:44.7]} 21... Kxf7 {[%clk 0:01:16.1]} 22. Nxe5+ {[%clk
0:01:45.8]} 22... Kg7 {[%clk 0:01:06.6]} 23. Rf7+ {[%clk 0:01:44.6]} 23... Kh8
{[%clk 0:01:04]} 24. Qh5 {[%clk 0:01:32]} 24... Qg5 {[%clk 0:00:57.1]} 25. Qxg5
{[%clk 0:01:32.6]} 25... Bxg5 {[%clk 0:00:57.4]} 26. Nxd7 {[%clk 0:01:33.1]}
26... Bxe3+ {[%clk 0:00:56.7]} 27. Kf1 {[%clk 0:01:33.6]} 27... Bxd2 {[%clk
0:00:57.7]} 28. Nf6 {[%clk 0:01:33.9]} 28... Rg7 {[%clk 0:00:54.1]} 29. Rxg7
{[%clk 0:01:27.5]} 29... Kxg7 {[%clk 0:00:54.3]} 30. Nd5 {[%clk 0:01:29]} 30...
Bxd5 {[%clk 0:00:43.5]} 31. exd5 {[%clk 0:01:30.9]} 31... Rb8 {[%clk 0:00:43.8]}
32. Rxa6 {[%clk 0:01:27.1]} 32... Rxb2 {[%clk 0:00:43.6]} 33. Rc6 {[%clk
0:01:28.7]} 33... Kf6 {[%clk 0:00:42.8]} 34. Rxc7 {[%clk 0:01:29.4]} 34... Rc2
{[%clk 0:00:38.2]} 35. Rc6 {[%clk 0:01:28]} 35... Rxc3 {[%clk 0:00:36.2]} 36.
Rxd6+ {[%clk 0:01:28.3]} 36... Kf5 {[%clk 0:00:37.4]} 37. Ke2 {[%clk 0:01:24.2]}
37... Bf4 {[%clk 0:00:37.4]} 38. Rd8 {[%clk 0:01:24.1]} 38... Re3+ {[%clk
0:00:36.4]} 39. Kf2 {[%clk 0:01:24.4]} 39... Rd3 {[%clk 0:00:37.1]} 40. d6
{[%clk 0:01:21.2]} 40... Rxd4 {[%clk 0:00:36.2]} 41. d7 {[%clk 0:01:22.2]} 41...
Bc7 {[%clk 0:00:34.5]} 42. Rh8 {[%clk 0:01:15]} 42... Bg3+ {[%clk 0:00:31.7]}
43. Kf3 {[%clk 0:01:13.7]} 43... Rxd7 {[%clk 0:00:32.8]} 44. Rf8+ {[%clk
0:01:14.7]} 44... Kg6 {[%clk 0:00:32.1]} 45. Rg8+ {[%clk 0:01:15.8]} 45... Kh7
{[%clk 0:00:32.1]} 46. Ra8 {[%clk 0:01:16.4]} 46... Rd2 {[%clk 0:00:30.4]} 47.
Ra7+ {[%clk 0:01:15.7]} 47... Kg6 {[%clk 0:00:31.7]} 48. Ra6+ {[%clk 0:01:16.9]}
48... Kf7 {[%clk 0:00:33.2]} 49. Ra7+ {[%clk 0:01:17.8]} 49... Ke6 {[%clk
0:00:34.3]} 50. Ra6+ {[%clk 0:01:17.5]} 50... Kd7 {[%clk 0:00:35.8]} 51. Ra7+
{[%clk 0:01:18.4]} 51... Kc6 {[%clk 0:00:37.2]} 52. Ra6+ {[%clk 0:01:19]} 52...
Kb7 {[%clk 0:00:38.7]} 53. Rh6 {[%clk 0:01:19]} 53... Rf2+ {[%clk 0:00:38.4]}
54. Kg4 {[%clk 0:01:19.5]} 54... Rxg2 {[%clk 0:00:39.8]} 55. Kh3 {[%clk
0:01:18.4]} 55... Rh2+ {[%clk 0:00:40.3]} 56. Kg4 {[%clk 0:01:19.7]} 56... Kc7
{[%clk 0:00:41.4]} 57. Kf3 {[%clk 0:01:20.4]} 57... Kd7 {[%clk 0:00:42.4]} 58.
Kg4 {[%clk 0:01:20.7]} 58... Ke7 {[%clk 0:00:44.3]} 59. Ra6 {[%clk 0:01:20.5]}
59... Kf7 {[%clk 0:00:46.2]} 60. Ra7+ {[%clk 0:01:21.3]} 60... Ke6 {[%clk
0:00:44.3]} 61. Ra6+ {[%clk 0:01:22.4]} 61... Kd5 {[%clk 0:00:45.5]} 62. Ra5+
{[%clk 0:01:23.6]} 62... Kc4 {[%clk 0:00:47]} 63. Ra4+ {[%clk 0:01:24.5]} 63...
Kb3 {[%clk 0:00:48.5]} 64. Ra7 {[%clk 0:01:25.5]} 64... Rf2 {[%clk 0:00:45.7]}
65. Kh3 {[%clk 0:01:26.3]} 65... Rf4 {[%clk 0:00:44.5]} 66. Rb7+ {[%clk
0:01:23.6]} 66... Kc4 {[%clk 0:00:44.3]} 67. Ra7 {[%clk 0:01:23.7]} 67... Kd3
{[%clk 0:00:44.5]} 68. Ra3+ {[%clk 0:01:24.2]} 68... Kc2 {[%clk 0:00:46]} 69.
Ra2+ {[%clk 0:01:25.3]} 69... Kb1 {[%clk 0:00:46.8]} 70. Ra6 {[%clk 0:01:24.1]}
70... Rb4 {[%clk 0:00:46.8]} 71. Ra7 {[%clk 0:01:23.4]} 71... Kc2 {[%clk
0:00:46.9]} 72. Ra2+ {[%clk 0:01:23.8]} 72... Kb3 {[%clk 0:00:47]} 73. Ra7
{[%clk 0:01:24.4]} 73... Rd4 {[%clk 0:00:46.9]} 74. Ra6 {[%clk 0:01:24.3]} 74...
Be1 {[%clk 0:00:46.4]} 75. Ra8 {[%clk 0:01:23.1]} 75... Bb4 {[%clk 0:00:44.8]}
76. Rh8 {[%clk 0:01:21.5]} 76... Be7 {[%clk 0:00:43.9]} 77. Ra8 {[%clk
0:01:20.2]} 77... Re4 {[%clk 0:00:45]} 78. Rb8+ {[%clk 0:01:18.1]} 78... Kc3
{[%clk 0:00:45.9]} 79. Ra8 {[%clk 0:01:20]} 79... Kd3 {[%clk 0:00:46.8]} 80. Rb8
{[%clk 0:01:19.1]} 80... Re3+ {[%clk 0:00:45.8]} 81. Kg2 {[%clk 0:01:19]} 81...
h3+ {[%clk 0:00:46.3]} 82. Kh1 {[%clk 0:01:19.5]} 82... Bd6 {[%clk 0:00:45.3]}
83. Rb3+ {[%clk 0:01:19.6]} 83... Ke2 {[%clk 0:00:42]} 84. Rxe3+ {[%clk
0:01:20]} 84... Kxe3 {[%clk 0:00:43.4]} 85. Kg1 {[%clk 0:01:21.1]} 85... Kf3
{[%clk 0:00:44.5]} 86. Kh1 {[%clk 0:01:22.3]} 86... Bg3 {[%clk 0:00:44.5]} 87.
Kg1 {[%clk 0:01:23.4]} 87... h2+ {[%clk 0:00:45.8]} 88. Kh1 {[%clk 0:01:24.6]}
88... Kf2 {[%clk 0:00:47.4]} 1/2-1/2

[Event "*** Titled Tuesday Blitz"]
[Site "Chess.com"]
[Date "2019.10.01"]
[Round "9"]
[White "ChessQueen"]
[Black "hypert"]
[Result "1-0"]
[WhiteElo "2619"]
[BlackElo "2443"]
[TimeControl "180+2"]
[EndTime "15:14:13 PDT"]
[Termination "ChessQueen won by resignation"]

1. Nf3 {[%clk 0:03:01.9]} 1... d5 {[%clk 0:03:00.7]} 2. g3 {[%clk 0:03:02.8]}
2... g6 {[%clk 0:03:02.1]} 3. Bg2 {[%clk 0:03:03.9]} 3... Bg7 {[%clk 0:03:03.7]}
4. O-O {[%clk 0:03:05.2]} 4... e5 {[%clk 0:03:04.9]} 5. d3 {[%clk 0:03:02.3]}
5... Nc6 {[%clk 0:03:05.8]} 6. e4 {[%clk 0:02:58]} 6... Nge7 {[%clk 0:03:06.9]}
7. Nc3 {[%clk 0:02:56.7]} 7... d4 {[%clk 0:03:00.9]} 8. Ne2 {[%clk 0:02:56.6]}
8... O-O {[%clk 0:03:00.8]} 9. Nh4 {[%clk 0:02:56.5]} 9... a5 {[%clk 0:03:02.4]}
10. f4 {[%clk 0:02:57.3]} 10... f5 {[%clk 0:02:59]} 11. fxe5 {[%clk 0:02:48.5]}
11... fxe4 {[%clk 0:02:45.7]} 12. Bxe4 {[%clk 0:02:41.1]} 12... Rxf1+ {[%clk
0:02:38.3]} 13. Qxf1 {[%clk 0:02:41.2]} 13... Nxe5 {[%clk 0:02:39.4]} 14. Bg5
{[%clk 0:02:33.9]} 14... Ra6 {[%clk 0:02:29.5]} 15. Qg2 {[%clk 0:02:22.1]} 15...
Rb6 {[%clk 0:02:13.4]} 16. b3 {[%clk 0:02:16.2]} 16... c5 {[%clk 0:02:13.4]} 17.
Rf1 {[%clk 0:02:13]} 17... Nf7 {[%clk 0:01:05.7]} 18. Bxe7 {[%clk 0:02:05.8]}
18... Qxe7 {[%clk 0:01:07.6]} 19. Bd5 {[%clk 0:02:06.8]} 19... Rf6 {[%clk
0:00:54.2]} 20. Nf3 {[%clk 0:01:54.8]} 20... Qe3+ {[%clk 0:00:46.8]} 21. Qf2
{[%clk 0:01:51.4]} 21... Bh6 {[%clk 0:00:47.2]} 22. Kg2 {[%clk 0:01:30.4]} 22...
Be6 {[%clk 0:00:42.4]} 23. Qxe3 {[%clk 0:01:27.1]} 23... Bxe3 {[%clk 0:00:44.3]}
24. Bxb7 {[%clk 0:01:19.7]} 24... Nd6 {[%clk 0:00:31]} 25. Ba8 {[%clk
0:01:12.2]} 25... Rf8 {[%clk 0:00:26.4]} 26. Bc6 {[%clk 0:01:12.9]} 26... Rc8
{[%clk 0:00:21.5]} 27. Be4 {[%clk 0:00:54.1]} 27... Nxe4 {[%clk 0:00:20.4]} 28.
dxe4 {[%clk 0:00:56]} 28... a4 {[%clk 0:00:21.9]} 29. Nf4 {[%clk 0:00:54.4]}
29... axb3 {[%clk 0:00:19.9]} 30. axb3 {[%clk 0:00:50.8]} 30... Bf7 {[%clk
0:00:20.8]} 31. Ng5 {[%clk 0:00:43.9]} 31... Be8 {[%clk 0:00:17.7]} 32. Nge6
{[%clk 0:00:40.7]} 32... c4 {[%clk 0:00:17.8]} 33. Nd5 {[%clk 0:00:40.9]} 33...
Bd7 {[%clk 0:00:11.8]} 34. Ne7+ {[%clk 0:00:34.4]} 34... Kh8 {[%clk 0:00:13]}
35. Nxc8 {[%clk 0:00:31.1]} 35... Bxe6 {[%clk 0:00:14.6]} 36. bxc4 {[%clk
0:00:26.7]} 36... Bxc4 {[%clk 0:00:13.6]} 37. Rf8+ {[%clk 0:00:24.6]} 37... Kg7
{[%clk 0:00:14.3]} 38. Re8 {[%clk 0:00:25.9]} 38... d3 {[%clk 0:00:14.9]} 39.
cxd3 {[%clk 0:00:26.5]} 39... Bxd3 {[%clk 0:00:16.8]} 40. Re7+ {[%clk
0:00:23.9]} 40... Kg8 {[%clk 0:00:16.5]} 41. Kf3 {[%clk 0:00:22.8]} 41... Bg5
{[%clk 0:00:17.3]} 42. Rc7 {[%clk 0:00:22.1]} 42... h5 {[%clk 0:00:17.7]} 43. h4
{[%clk 0:00:22.4]} 43... Bf6 {[%clk 0:00:18.5]} 44. Nb6 {[%clk 0:00:21.6]} 44...
Bf1 {[%clk 0:00:19.1]} 45. Nd5 {[%clk 0:00:21.7]} 45... Be5 {[%clk 0:00:19.7]}
46. Re7 {[%clk 0:00:22.7]} 46... Bg7 {[%clk 0:00:20.7]} 47. Rd7 {[%clk
0:00:22.2]} 47... Bh3 {[%clk 0:00:21.7]} 48. Ra7 {[%clk 0:00:21.9]} 48... Be5
{[%clk 0:00:22.1]} 49. Nf4 {[%clk 0:00:22.2]} 49... Bg4+ {[%clk 0:00:22.9]} 50.
Ke3 {[%clk 0:00:23.3]} 50... Bh3 {[%clk 0:00:21.4]} 51. Re7 {[%clk 0:00:21.4]}
51... Bf6 {[%clk 0:00:21.1]} 52. Rb7 {[%clk 0:00:21.4]} 52... Bg4 {[%clk
0:00:22.1]} 53. Rb6 {[%clk 0:00:21.5]} 53... Kf7 {[%clk 0:00:21.6]} 54. Rb7+
{[%clk 0:00:22]} 54... Kg8 {[%clk 0:00:23]} 55. Nxg6 {[%clk 0:00:22.6]} 55...
Bc3 {[%clk 0:00:23.2]} 56. Nf4 {[%clk 0:00:21.3]} 56... Be1 {[%clk 0:00:23.7]}
57. Nd5 {[%clk 0:00:14.5]} 57... Bxg3 {[%clk 0:00:19.9]} 58. Nf6+ {[%clk
0:00:15.7]} 58... Kf8 {[%clk 0:00:21.4]} 59. Nxg4 {[%clk 0:00:17.3]} 59... hxg4
{[%clk 0:00:23]} 60. h5 {[%clk 0:00:18.6]} 60... Be5 {[%clk 0:00:24.1]} 61. h6
{[%clk 0:00:18.7]} 61... Kg8 {[%clk 0:00:24.9]} 62. Re7 {[%clk 0:00:18.8]} 62...
Bf6 {[%clk 0:00:25.4]} 63. Rb7 {[%clk 0:00:14.6]} 63... Bg5+ {[%clk 0:00:26.1]}
64. Kf2 {[%clk 0:00:15.8]} 64... Bxh6 {[%clk 0:00:26.4]} 65. Kg3 {[%clk
0:00:17.1]} 65... Kf8 {[%clk 0:00:27.1]} 66. Kxg4 {[%clk 0:00:18.5]} 66... Ke8
{[%clk 0:00:28.7]} 67. Kf5 {[%clk 0:00:19.7]} 67... Be3 {[%clk 0:00:28.3]} 68.
Ke6 {[%clk 0:00:20.7]} 68... Kd8 {[%clk 0:00:28.6]} 69. e5 {[%clk 0:00:21.3]}
69... Bc5 {[%clk 0:00:28.6]} 70. Rh7 {[%clk 0:00:21.2]} 70... Be3 {[%clk
0:00:28.7]} 71. Rh8+ {[%clk 0:00:21.5]} 71... Kc7 {[%clk 0:00:30.3]} 72. Kf7
{[%clk 0:00:21.1]} 72... Bd4 {[%clk 0:00:31.9]} 73. Rh5 {[%clk 0:00:22.1]} 73...
Kd8 {[%clk 0:00:30.9]} 74. e6 {[%clk 0:00:23.1]} 74... Bc5 {[%clk 0:00:31.7]}
75. Rd5+ {[%clk 0:00:22.8]} 1-0

[Event "*** Titled Tuesday Blitz"]
[Site "Chess.com"]
[Date "2019.10.01"]
[Round "9"]
[White "MathiasWomacka"]
[Black "kingofthenil"]
[Result "0-1"]
[WhiteElo "2305"]
[BlackElo "2567"]
[TimeControl "180+2"]
[EndTime "15:14:13 PDT"]
[Termination "kingofthenil won by resignation"]

1. e4 {[%clk 0:03:01.8]} 1... Nc6 {[%clk 0:02:59.1]} 2. Nf3 {[%clk 0:03:01.9]}
2... d6 {[%clk 0:02:59.2]} 3. d4 {[%clk 0:03:01.8]} 3... Nf6 {[%clk 0:03:01.1]}
4. Nc3 {[%clk 0:03:01.9]} 4... g6 {[%clk 0:03:02.2]} 5. d5 {[%clk 0:02:59.4]}
5... Nb8 {[%clk 0:03:02.1]} 6. h3 {[%clk 0:02:59.1]} 6... Bg7 {[%clk 0:03:01.8]}
7. Be3 {[%clk 0:03:00.6]} 7... O-O {[%clk 0:02:59.8]} 8. Qd2 {[%clk 0:03:01.7]}
8... c6 {[%clk 0:02:58.5]} 9. Bh6 {[%clk 0:03:00.1]} 9... b5 {[%clk 0:02:58.7]}
10. Bxg7 {[%clk 0:02:59.1]} 10... Kxg7 {[%clk 0:02:59]} 11. dxc6 {[%clk
0:02:55.9]} 11... Nxc6 {[%clk 0:02:46.8]} 12. Bxb5 {[%clk 0:02:55.3]} 12... Qb6
{[%clk 0:02:25]} 13. Bxc6 {[%clk 0:02:39.4]} 13... Qxc6 {[%clk 0:02:25.1]} 14.
Nd5 {[%clk 0:02:35.4]} 14... Be6 {[%clk 0:02:07.1]} 15. Nxf6 {[%clk 0:02:26.9]}
15... exf6 {[%clk 0:02:03]} 16. O-O {[%clk 0:02:12.5]} 16... Qxe4 {[%clk
0:02:01.8]} 17. Rfe1 {[%clk 0:02:12.8]} 17... Qd5 {[%clk 0:01:59.4]} 18. Qxd5
{[%clk 0:02:11.3]} 18... Bxd5 {[%clk 0:02:01.3]} 19. Nd4 {[%clk 0:02:12.4]}
19... Rfe8 {[%clk 0:01:58.5]} 20. f3 {[%clk 0:02:12.1]} 20... a6 {[%clk
0:01:50.8]} 21. b3 {[%clk 0:02:08.8]} 21... Re5 {[%clk 0:01:50.2]} 22. Kf2
{[%clk 0:02:05.1]} 22... Bb7 {[%clk 0:01:46.2]} 23. Rad1 {[%clk 0:01:58.5]}
23... Rc8 {[%clk 0:01:45.8]} 24. c4 {[%clk 0:01:57.3]} 24... h5 {[%clk
0:01:41.7]} 25. Ne2 {[%clk 0:01:50]} 25... d5 {[%clk 0:01:37.7]} 26. cxd5 {[%clk
0:01:50.4]} 26... Rxd5 {[%clk 0:01:32.7]} 27. Rxd5 {[%clk 0:01:49.6]} 27... Bxd5
{[%clk 0:01:34.6]} 28. Rd1 {[%clk 0:01:51]} 28... Ba8 {[%clk 0:01:23]} 29. Nd4
{[%clk 0:01:48.9]} 29... Kh7 {[%clk 0:01:14.6]} 30. h4 {[%clk 0:01:48.7]} 30...
Rd8 {[%clk 0:01:15.2]} 31. Rd2 {[%clk 0:01:45.7]} 31... g5 {[%clk 0:01:14.3]}
32. g3 {[%clk 0:01:40.3]} 32... Kg6 {[%clk 0:01:14.5]} 33. Ke3 {[%clk
0:01:41.1]} 33... Re8+ {[%clk 0:01:14.2]} 34. Kf2 {[%clk 0:01:36.8]} 34... Rd8
{[%clk 0:01:15.3]} 35. b4 {[%clk 0:01:34.4]} 35... Rd5 {[%clk 0:01:13.3]} 36. a4
{[%clk 0:01:33.2]} 36... Bc6 {[%clk 0:01:12.6]} 37. b5 {[%clk 0:01:12.7]} 37...
axb5 {[%clk 0:01:12.5]} 38. axb5 {[%clk 0:01:14.1]} 38... Bxb5 {[%clk
0:01:13.1]} 39. Nb3 {[%clk 0:00:58.7]} 39... Re5 {[%clk 0:01:05.3]} 40. f4
{[%clk 0:00:51.3]} 40... gxf4 {[%clk 0:00:48.2]} 41. gxf4 {[%clk 0:00:53.2]}
41... Re4 {[%clk 0:00:49.4]} 42. Rd4 {[%clk 0:00:52.3]} 42... Re2+ {[%clk
0:00:43.6]} 43. Kf3 {[%clk 0:00:53.3]} 43... Rb2 {[%clk 0:00:42.8]} 44. Nd2
{[%clk 0:00:45.8]} 44... Bc6+ {[%clk 0:00:43.5]} 45. Kg3 {[%clk 0:00:46.4]}
45... Kf5 {[%clk 0:00:43.6]} 46. Kh3 {[%clk 0:00:36.4]} 46... Rc2 {[%clk
0:00:41.5]} 47. Kg3 {[%clk 0:00:37.4]} 47... Bb7 {[%clk 0:00:39.2]} 48. Nc4
{[%clk 0:00:35.2]} 48... Rc3+ {[%clk 0:00:39.8]} 49. Kh2 {[%clk 0:00:34.1]}
49... Kg4 {[%clk 0:00:26.6]} 50. f5+ {[%clk 0:00:34.9]} 50... Kf3 {[%clk
0:00:27.6]} 51. Nd6 {[%clk 0:00:33]} 51... Ba6 {[%clk 0:00:20.8]} 52. Nxf7
{[%clk 0:00:29.9]} 52... Rc2+ {[%clk 0:00:21.9]} 53. Kg1 {[%clk 0:00:30.4]}
53... Kg3 {[%clk 0:00:19.1]} 54. Rd1 {[%clk 0:00:25.9]} 54... Rg2+ {[%clk
0:00:19.7]} 55. Kh1 {[%clk 0:00:26.6]} 55... Bb7 {[%clk 0:00:12.5]} 56. Rd3+
{[%clk 0:00:22.2]} 56... Kxh4 {[%clk 0:00:13.4]} 57. Nd6 {[%clk 0:00:19]} 57...
Rg3+ {[%clk 0:00:12.8]} 58. Nxb7 {[%clk 0:00:18.8]} 58... Rxd3 {[%clk
0:00:14.1]} 59. Kg2 {[%clk 0:00:19.6]} 59... Rd2+ {[%clk 0:00:14.9]} 60. Kf3
{[%clk 0:00:20.6]} 60... Rb2 {[%clk 0:00:16.8]} 61. Nd6 {[%clk 0:00:20.2]} 61...
Kg5 {[%clk 0:00:18.7]} 62. Ke4 {[%clk 0:00:21.4]} 62... h4 {[%clk 0:00:17.7]}
63. Nf7+ {[%clk 0:00:21.4]} 63... Kh5 {[%clk 0:00:17.6]} 64. Kf3 {[%clk
0:00:22.4]} 64... h3 {[%clk 0:00:17.7]} 0-1

[Event "*** Titled Tuesday Blitz"]
[Site "Chess.com"]
[Date "2019.10.01"]
[Round "9"]
[White "Bigfish1995"]
[Black "joppie2"]
[Result "1-0"]
[WhiteElo "2998"]
[BlackElo "2869"]
[TimeControl "180+2"]
[EndTime "15:14:32 PDT"]
[Termination "Bigfish1995 won by resignation"]

1. e4 {[%clk 0:03:01.5]} 1... c5 {[%clk 0:02:32.6]} 2. Nf3 {[%clk 0:03:01.4]}
2... d6 {[%clk 0:02:31.6]} 3. d4 {[%clk 0:03:01.8]} 3... cxd4 {[%clk 0:02:33.5]}
4. Nxd4 {[%clk 0:03:03.5]} 4... Nf6 {[%clk 0:02:35.2]} 5. Nc3 {[%clk 0:03:05.2]}
5... a6 {[%clk 0:02:36.8]} 6. Nb3 {[%clk 0:03:01.2]} 6... Nbd7 {[%clk
0:02:36.7]} 7. g4 {[%clk 0:03:01.5]} 7... h6 {[%clk 0:02:36.8]} 8. Bg2 {[%clk
0:02:57.2]} 8... Qc7 {[%clk 0:02:21.1]} 9. h4 {[%clk 0:02:56.2]} 9... g6 {[%clk
0:01:52]} 10. g5 {[%clk 0:02:55.4]} 10... Nh5 {[%clk 0:01:43.1]} 11. Nd5 {[%clk
0:02:44.5]} 11... Qd8 {[%clk 0:01:42.7]} 12. Qd4 {[%clk 0:02:45.4]} 12... Bg7
{[%clk 0:01:39.3]} 13. Qc4 {[%clk 0:02:45.3]} 13... Ne5 {[%clk 0:01:28]} 14. Qc7
{[%clk 0:02:35.8]} 14... Be6 {[%clk 0:01:20.9]} 15. Qxd8+ {[%clk 0:02:31.2]}
15... Rxd8 {[%clk 0:01:19.2]} 16. Nc7+ {[%clk 0:02:31.9]} 16... Kd7 {[%clk
0:01:19.2]} 17. Nxe6 {[%clk 0:02:33.5]} 17... fxe6 {[%clk 0:01:19.1]} 18. Nd4
{[%clk 0:02:27.3]} 18... Rdf8 {[%clk 0:01:19.2]} 19. Ne2 {[%clk 0:01:34.6]}
19... Nf3+ {[%clk 0:01:07.1]} 20. Bxf3 {[%clk 0:01:29.7]} 20... Rxf3 {[%clk
0:01:09]} 21. c3 {[%clk 0:01:27.1]} 21... Be5 {[%clk 0:01:00]} 22. gxh6 {[%clk
0:01:18.2]} 22... Rhf8 {[%clk 0:00:47.7]} 23. Be3 {[%clk 0:01:14.1]} 23... Nf4
{[%clk 0:00:47.9]} 24. Bxf4 {[%clk 0:01:11.4]} 24... Bxf4 {[%clk 0:00:48.9]} 25.
Ng1 {[%clk 0:01:12.6]} 25... Rd3 {[%clk 0:00:50]} 26. Rd1 {[%clk 0:01:03.1]}
26... Rxd1+ {[%clk 0:00:50.3]} 27. Kxd1 {[%clk 0:01:04.4]} 27... Bxh6 {[%clk
0:00:52.2]} 28. Ke2 {[%clk 0:01:04.6]} 28... Rf4 {[%clk 0:00:47.4]} 29. f3
{[%clk 0:01:05.5]} 29... d5 {[%clk 0:00:47.5]} 30. h5 {[%clk 0:01:04.6]} 30...
Rf6 {[%clk 0:00:43.1]} 31. Nh3 {[%clk 0:00:48.1]} 31... gxh5 {[%clk 0:00:42.1]}
32. Nf2 {[%clk 0:00:48]} 32... Kd6 {[%clk 0:00:38]} 33. e5+ {[%clk 0:00:31.7]}
33... Kxe5 {[%clk 0:00:35.9]} 34. Rxh5+ {[%clk 0:00:33.1]} 34... Kd6 {[%clk
0:00:24]} 35. Ng4 {[%clk 0:00:34]} 35... Bc1 {[%clk 0:00:25.9]} 36. Nxf6 {[%clk
0:00:35.2]} 36... exf6 {[%clk 0:00:27.8]} 37. b3 {[%clk 0:00:36.7]} 37... b6
{[%clk 0:00:23]} 38. b4 {[%clk 0:00:32.6]} 38... a5 {[%clk 0:00:19.6]} 39. Kd3
{[%clk 0:00:22.9]} 39... Ba3 {[%clk 0:00:17.7]} 40. bxa5 {[%clk 0:00:21.3]}
40... bxa5 {[%clk 0:00:17.9]} 41. Rh8 {[%clk 0:00:19.8]} 41... Bc5 {[%clk
0:00:19.3]} 42. Ra8 {[%clk 0:00:19.1]} 42... Bb6 {[%clk 0:00:20.6]} 43. a4
{[%clk 0:00:17.2]} 43... e5 {[%clk 0:00:20]} 44. Rc8 {[%clk 0:00:16.6]} 44... f5
{[%clk 0:00:19.7]} 45. Ke2 {[%clk 0:00:14.4]} 45... e4 {[%clk 0:00:20.6]} 46. f4
{[%clk 0:00:14.7]} 46... Bc7 {[%clk 0:00:18.2]} 47. Kf2 {[%clk 0:00:11.6]} 47...
Kd7 {[%clk 0:00:17.7]} 48. Ra8 {[%clk 0:00:11.1]} 48... Bxf4 {[%clk 0:00:17.2]}
49. Rxa5 {[%clk 0:00:11.7]} 49... Kc6 {[%clk 0:00:16]} 50. Ra8 {[%clk
0:00:11.8]} 50... Bc7 {[%clk 0:00:16]} 51. a5 {[%clk 0:00:11]} 51... f4 {[%clk
0:00:17.6]} 52. a6 {[%clk 0:00:11.6]} 52... Bb6+ {[%clk 0:00:17.8]} 53. Kf1
{[%clk 0:00:11.3]} 53... f3 {[%clk 0:00:17.8]} 54. Rc8+ {[%clk 0:00:10.5]} 54...
Kd6 {[%clk 0:00:13]} 55. Rf8 {[%clk 0:00:10.1]} 55... Kc6 {[%clk 0:00:10.1]} 56.
Rf7 {[%clk 0:00:11.3]} 56... e3 {[%clk 0:00:07.3]} 57. Rxf3 {[%clk 0:00:11]}
57... Kb5 {[%clk 0:00:07.7]} 58. Rf5 {[%clk 0:00:09.7]} 58... Kxa6 {[%clk
0:00:05]} 59. Rxd5 {[%clk 0:00:10.8]} 59... Kb7 {[%clk 0:00:06.4]} 60. Ke2
{[%clk 0:00:11.6]} 60... Kc6 {[%clk 0:00:08.3]} 61. Rh5 {[%clk 0:00:12.5]} 61...
Bc5 {[%clk 0:00:09.2]} 62. Kd3 {[%clk 0:00:13.7]} 62... Kb5 {[%clk 0:00:09.8]}
63. Rh6 {[%clk 0:00:13.6]} 63... Ba7 {[%clk 0:00:07.8]} 64. Re6 {[%clk
0:00:14.6]} 64... Bc5 {[%clk 0:00:08.3]} 65. Re5 {[%clk 0:00:14.1]} 65... Kc6
{[%clk 0:00:09.7]} 66. Kc4 {[%clk 0:00:15.1]} 66... Ba7 {[%clk 0:00:11.3]} 67.
Re6+ {[%clk 0:00:16.2]} 67... Kd7 {[%clk 0:00:12.3]} 68. Kd5 {[%clk 0:00:17.5]}
68... Kc7 {[%clk 0:00:07.5]} 69. c4 {[%clk 0:00:17.9]} 69... Kd7 {[%clk
0:00:08.1]} 70. Re4 {[%clk 0:00:18.9]} 1-0